Cogmind - Beta 16.1 @@@ ROGUE MODE // 2026.05.02 @ 15:34:27 Player: shockman27 Result: Destroyed by P-80 Master with Gamma Rifle Performance ------------- Evolutions (7) 3500 Regions Visited (20) 4000 Robots Destroyed (190) 950 Value Destroyed (5840) 5840 Prototype IDs (129) 2580 Alien Tech Used (2) 400 Bonus (3961) 3961 TOTAL SCORE: 21231 Bonus ------- High Alert Combat Kills 250 Registered with UFD 300 Met Optimus in HQ 500 Met Imprinter 300 Met Zhirov 300 Met Sigix 2000 Met Optimus at Protoforge 1000 Friendly Fire -689 Cogmind --------- Core Integrity 0/1300 Matter 280/300 Energy 375/375 System Corruption 0% Temperature Cool (0) Movement Rolling (80) Location -3/Protoforge Parts ------- > --- POWER (2) -------- Reinforced Antimatter Reactor Micro Antimatter Reactor > --- PROPULSION (6) --- Compact Wheel Overtuned Huge Scrapsphere Overtuned Huge Scrapsphere > --- UTILITY (11) ----- Scrap Suit Experimental Coolant Injector Experimental Optical Array Advanced Sensor Array Advanced Signal Interpreter Experimental Core Analyzer Experimental Core Analyzer Experimental Core Analyzer Experimental Armor Integrity Analyzer Centrium Light Armor Plating > --- WEAPON (2) ------- Overtuned Railgun Helical Railgun > --- INVENTORY (5) ---- Antimatter Reactor Phasing AFG Core Reset Matrix Helical Railgun Powered Hammer Peak State ------------ > --- POWER ------------ Micro Antimatter Reactor Micro Antimatter Reactor > --- PROPULSION ------- Improved Cesium-ion Thruster Q-thruster Q-thruster Electron Diverter Impulse Thruster Array > --- UTILITY ---------- Experimental Coolant Injector Advanced Sensor Array Advanced Signal Interpreter Advanced Target Analyzer Experimental Core Analyzer Experimental Armor Integrity Analyzer Experimental Kinecellerator Advanced Transmission Jammer Experimental Reaction Control System Advanced Component Analysis Suite Experimental System Purifier > --- WEAPON ----------- Concept XC Strikerail Concept XC Strikerail > --- INVENTORY -------- Light Particle Reactor Phasing AFG Core Reset Matrix Concept Concussive Dispersal Blaster Nanosword [Rating: 184] Favorites ----------- Power Cooled Ion Engine Engine Cooled Ion Engine Power Core Light Fission Core Reactor Micro Antimatter Reactor Propulsion Light Treads Treads Light Treads Leg Myomer Leg Wheel Compact Wheel Flight Unit Improved Flight Unit Utility Huge Storage Unit Device Deep Structural Scanner Storage Huge Storage Unit Processor Enhanced Optical Array Hackware Hacking Suite Protection Medium Armor Plating Weapon Improved Assault Rifle Energy Gun Heavy EM Pulse Gun Energy Cannon Matter Neutralizer Ballistic Gun Improved Assault Rifle Ballistic Cannon Light Cannon Launcher Grenade Launcher Special Weapon Plasma Cutter Impact Weapon Power Maul Slashing Weapon Nanosword Build | -11 -10 -10 -9 -9 -9 -9 -6 -6 -6 -6 -5 -5 -5 -5 -5 -4 -4 -3 -3 -3 ------- Run | Yrd Mat Min Mat Sto Rec Scr Fac Low Low Zio Pro Fac Upp Upp Zhi Pro Fac Res Qua Frg Slots Evolved 14 | . . . 2 . . . 6 . . . . 2 . . . . 2 2 . . Power 1 | . . . . . . . . . . . . 1 . . . . . . . . Propulsion 4 | . . . 1 . . . 3 . . . . . . . . . . . . . Utility 9 | . . . 1 . . . 3 . . . . 1 . . . . 2 2 . . Weapon . | . . . . . . . . . . . . . . . . . . . . . Parts Attached 226 | 7 21 2 33 23 2 12 21 . . 3 . 6 3 1 4 2 8 17 10 51 Power 29 | 1 2 . 3 2 . 1 1 . . . . 2 . . 1 1 1 3 4 7 Engine 9 | 1 2 . 3 2 . . . . . . . . . . . . 1 . . . Core 6 | . . . . . . 1 1 . . . . 2 . . . 1 . . . 1 Reactor 14 | . . . . . . . . . . . . . . . 1 . . 3 4 6 Propulsion 65 | 2 2 . 11 11 . 7 6 . . . . . . 1 . . . 4 3 18 Treads 29 | 2 1 . 10 11 . 2 . . . . . . . . . . . . . 3 Leg 7 | . . . . . . . . . . . . . . . . . . . . 7 Wheel 8 | . 1 . . . . 3 . . . . . . . . . . . . . 4 Hover . | . . . . . . . . . . . . . . . . . . . . . Flight 21 | . . . 1 . . 2 6 . . . . . . 1 . . . 4 3 4 Utility 81 | 2 7 . 7 4 . 4 9 . . 3 . 3 1 . 3 1 6 9 2 20 Device 35 | 1 1 . 1 . . 1 4 . . 3 . 3 1 . 1 1 4 5 1 8 Storage 5 | 1 3 . . . . . 1 . . . . . . . . . . . . . Processor 15 | . . . . . . . 3 . . . . . . . . . 1 3 1 7 Hackware 4 | . . . . . . . 1 . . . . . . . 1 . . 1 . 1 Protection 22 | . 3 . 6 4 . 3 . . . . . . . . 1 . 1 . . 4 Artifact . | . . . . . . . . . . . . . . . . . . . . . Weapon 51 | 2 10 2 12 6 2 . 5 . . . . 1 2 . . . 1 1 1 6 Energy Gun 5 | . 2 1 1 . . . . . . . . . . . . . . . . 1 Energy Cannon 6 | . 1 . . . . . 2 . . . . 1 1 . . . 1 . . . Ballistic Gun 22 | 2 4 . 7 4 1 . . . . . . . . . . . . . . 4 Ballistic Cannon 3 | . 2 . 1 . . . . . . . . . . . . . . . . . Launcher 5 | . 1 . 2 1 . . 1 . . . . . . . . . . . . . Special Weapon 2 | . . . . 1 . . . . . . . . 1 . . . . . . . Impact Weapon 7 | . . 1 1 . 1 . 2 . . . . . . . . . . . 1 1 Slashing Weapon 1 | . . . . . . . . . . . . . . . . . . 1 . . Piercing Weapon . | . . . . . . . . . . . . . . . . . . . . . Special Melee Weapon . | . . . . . . . . . . . . . . . . . . . . . Unidentified Prototypes 32 | . . . 2 2 . . 3 . . 3 . 1 1 . 3 . 2 4 2 9 Corrupted Parts 3 | . . . . . . . . . . . . . . . . . . . . 3 System Corruption 12 | . . . . . . . . . . . . . . . . . . . . 12 Parts Lost 45 | . 1 . 3 1 2 . . . . . . 1 . . . . . 2 2 33 Power 6 | . . . 1 . . . . . . . . . . . . . . . . 5 Propulsion 12 | . . . . . . . . . . . . . . . . . . . 1 11 Utility 18 | . 1 . 2 1 1 . . . . . . 1 . . . . . 2 1 9 Weapon 9 | . . . . . 1 . . . . . . . . . . . . . . 8 Highest Loss Streak 11 | . 1 . 2 1 2 . . . . . . 1 . . . . . 2 1 11 To Critical Strikes . | . . . . . . . . . . . . . . . . . . . . . Average Backups 17 | 3 14 24 24 24 23 23 8 8 8 8 8 5 5 5 5 5 4 4 4 3 Power . | . 1 1 . 1 1 . . 1 1 1 1 . . . . . . . . . Propulsion 4 | 1 1 5 4 9 10 7 . . . . . . . . . . . . . . Utility 6 | . 4 7 8 8 7 11 5 6 6 6 6 4 4 4 4 4 3 3 1 . Weapon 4 | 1 7 11 10 5 3 2 1 1 1 1 1 1 1 1 1 1 1 1 1 . Tool/Special . | . . . . . . . . . . . . . . . . . . . . . Unused Backups 43 | . 6 1 12 4 . 5 5 . . 1 . 1 . . . . . . 3 5 Power 4 | . 1 . . 1 . . . . . . . . . . . . . . . 2 Propulsion 5 | . 2 . 1 1 . 1 . . . . . . . . . . . . . . Utility 14 | . . . 2 2 . 3 4 . . 1 . 1 . . . . . . 1 . Weapon 18 | . 3 1 9 . . 1 1 . . . . . . . . . . . 2 1 Tool/Special 2 | . . . . . . . . . . . . . . . . . . . . 2 Average Slot Usage (%) 94 | . 99 100 98 97 89 94 96 100 100 99 100 99 100 100 100 100 99 94 88 74 Engine 5 | . 14 14 10 11 5 . . . . . . . . . . . . . . . Core 2 | . . . . . . 6 6 6 6 6 6 10 11 11 11 11 10 2 . . Treads 20 | . 23 14 32 33 33 27 . . . . . . . . . . . . . . Wheel 2 | . 4 14 . . . 3 . . . . . . . . . . . . . 4 Flight 8 | . . . . . . 1 39 40 40 40 40 35 35 35 35 35 31 24 20 8 Device 10 | . 5 . 2 1 2 12 15 13 13 12 13 22 23 23 23 23 30 29 30 22 Storage 8 | . 15 14 11 11 11 10 5 6 6 6 6 . . . . . . . . . Processor 4 | . . . . . . . 10 13 13 13 13 11 11 11 11 11 10 13 14 18 Hackware 1 | . . . . . . . 5 6 6 6 6 5 5 5 5 5 5 5 4 1 Protection 10 | . 7 14 18 18 16 10 . . . . . . . . . . . . . 2 Energy Cannon 1 | . 5 . . . . . 3 6 4 6 6 5 5 5 5 5 5 4 2 . Ballistic Gun 12 | . 16 21 11 16 21 21 . . . . . . . . . . . . . 3 Ballistic Cannon 1 | . 2 . 7 . . . . . . . . . . . . . . . . . Impact Weapon 1 | . . 1 1 4 . . 5 6 6 6 6 5 4 5 5 5 5 1 . . Peak Build Rating 184 | 7 13 13 23 30 29 32 65 66 66 69 66 80 85 80 87 89 106 139 154 184 Average Rating 44 | 5 10 12 18 23 21 26 55 65 66 65 66 75 76 79 83 85 100 123 133 131 On Entrance 59 | . 7 12 13 22 23 18 32 62 66 66 66 66 76 77 80 87 87 100 136 143 Avg Prop Armor Cover (%) 3 | . 9 8 . . . . 2 1 1 1 2 . . . . . . . . 7 Naked Turns . | . . . . . . . . . . . . . . . . . . . . . Heaviest Build 112 | 14 101 99 109 109 112 97 97 27 27 27 25 33 32 32 32 33 35 43 56 72 Greatest Support 75 | 40 40 16 60 63 63 71 34 27 27 27 27 32 32 34 34 34 35 46 46 75 Greatest Overweight (x) 31 | . 6 6 2 1 1 31 2 . . . . 1 . . . . . 1 1 6 Average Overweight (x) . | . 1 6 1 1 1 1 . . . . . . . . . . . . . . Largest Inventory Capacity 25 | 8 25 25 25 25 25 25 25 8 8 8 8 8 5 5 5 5 5 5 5 5 Average Capacity 18 | 7 16 25 25 25 25 24 8 8 8 8 8 5 5 5 5 5 5 5 5 5 Most Carried 25 | 5 25 25 25 25 25 25 25 8 8 8 8 7 5 5 5 5 5 5 5 5 Average Carried 17 | 4 14 24 24 24 23 23 7 8 8 7 8 5 5 5 5 5 4 4 4 3 Final Capacity 25 | 8 25 25 25 25 25 25 8 8 8 8 8 5 5 5 5 5 5 5 5 5 Final Carried 25 | 5 25 25 25 25 23 24 8 8 8 8 8 5 5 5 5 5 5 3 4 5 Scrap Suit Usage (%) 4 | . . . . . . . . . . . . . . . . . . . . 45 Parts Cannibalized 2 | . . . . . . . . . . . . . . . . . . . . 2 Class Distribution -------------------- 43% | Mutant 19% | Commander-Mutant 10% | Infiltrator-Ninja 8% | Scavenger-Mutant 6% | Scout 3% | Scavenger-Scrapper Dominant Class ---------------- Mutant | -10/Materials Mutant | -10/Mines Mutant | -9/Materials Mutant | -9/Storage Mutant | -9/Recycling Commander-Mutant | -9/Scraptown Commander-Scout | -6/Factory Scout | -6/Lower Caves Scout | -6/Lower Caves Scout | -6/Zion Scout | -5/Proximity Caves Ninja | -5/Factory Ninja | -5/Upper Caves Ninja | -5/Upper Caves Ninja | -5/Zhirov Ninja | -4/Proximity Caves Infiltrator-Ninja | -4/Factory Infiltrator-Ninja | -3/Research Infiltrator-Ninja | -3/Quarantine Scavenger-Scrapper | -3/Protoforge Resources | -11 -10 -10 -9 -9 -9 -9 -6 -6 -6 -6 -5 -5 -5 -5 -5 -4 -4 -3 -3 -3 ----------- Run | Yrd Mat Min Mat Sto Rec Scr Fac Low Low Zio Pro Fac Upp Upp Zhi Pro Fac Res Qua Frg Matter Collected 7041 | 318 682 49 1354 1077 160 280 219 151 . 76 39 22 333 13 87 40 150 170 229 1592 Remotely 10 | . . . . . . . . . . . . . 10 . . . . . . . Salvage Created 8129 | 156 665 88 1545 1720 446 . 134 . 10 . . 22 271 . 333 . 164 201 109 2265 Parts 383 | 11 45 2 91 99 17 . 2 . 1 . . . 5 . 5 . . 8 7 90 Haulers Intercepted 15 | . 2 . 5 6 . . . . . . . . . . . . . 2 . . Recyclers Shooed 2 | . . . 1 . 1 . . . . . . . . . . . . . . . Parts Field Recycled . | . . . . . . . . . . . . . . . . . . . . . Retrieved Matter . | . . . . . . . . . . . . . . . . . . . . . Parts Self-Destructed 9 | . . . . . . . . . 1 . . . 4 . 4 . . . . . Prevented 3 | . . . . . . . . . . . . . 2 1 . . . . . . Parts Restored . | . . . . . . . . . . . . . . . . . . . . . Kills | -11 -10 -10 -9 -9 -9 -9 -6 -6 -6 -6 -5 -5 -5 -5 -5 -4 -4 -3 -3 -3 ------- Run | Yrd Mat Min Mat Sto Rec Scr Fac Low Low Zio Pro Fac Upp Upp Zhi Pro Fac Res Qua Frg Combat Hostiles Destroyed 121 | . 14 2 33 26 2 . 4 . 1 . . . 5 . . . . . . 34 Melee 3 | . . 1 . . . . . . . . . . . . . . . . . 2 Guns 80 | . 10 1 17 21 1 . . . . . . . . . . . . . . 30 Cannons 5 | . . . 5 . . . . . . . . . . . . . . . . . AOE 32 | . 4 . 10 5 1 . 4 . 1 . . . 5 . . . . . . 2 Classes Destroyed 22 | 2 6 2 2 . 1 . . . . . . . 1 . . . . . . 8 Worker 6 | . 1 . 1 3 . . . . . . . . . . . . 1 . . . Builder 8 | . . 1 2 3 1 . . . . . . . . . . . . . . 1 Tunneler 5 | 5 . . . . . . . . . . . . . . . . . . . . Hauler 17 | . 2 . 5 6 . . . . . . . . . . . . . 2 . 2 Recycler 14 | 1 2 . 3 2 4 . 1 . . . . . . . . . 1 . . . Operator 9 | . 1 . 1 3 . . . . . . . . . . . . . 1 1 2 Drone 8 | . . . . . . . . . . . . . . . . . . . . 8 Watcher 10 | . 3 . 1 1 . . . . . . . 1 . . . . 1 . 2 1 Swarmer 33 | . 6 . 8 5 . . 4 . 1 . . . 5 . . . . . . 4 Grunt 41 | . 8 1 14 12 . . . . . . . . . . . . . . . 6 Brawler 2 | . . . 1 1 . . . . . . . . . . . . . . . . Duelist 1 | . . . . . . . . . . . . . . . . . . . . 1 Sentry 19 | . . . 10 8 1 . . . . . . . . . . . . . . . Demolisher 1 | . . . . . 1 . . . . . . . . . . . . . . . Hunter 5 | . . . . . . . . . . . . . . . . . . . . 5 Programmer 1 | . . . . . . . . . . . . . . . . . . . . 1 Decapitator 2 | . . . . . . . . . . . . . . . . . . . . 2 Striker 6 | . . . . . . . . . . . . . . . . . . . . 6 Executioner 1 | . . . . . . . . . . . . . . . . . . . . 1 Scrapoid 2 | . . . . . . . . . . . . . . . . . . . . 2 Packrat 3 | . . . . . . . . . . . . . 3 . . . . . . . Samaritan 1 | . . . . . . . . . . . . . 1 . . . . . . . Assembled 1 | . . 1 . . . . . . . . . . . . . . . . . . Best Kill Streak 11 | 3 3 1 4 7 3 . 4 . 1 . . 1 5 . . . 1 1 1 11 Combat Bots Only 11 | . 3 1 4 5 1 . 4 . 1 . . . 5 . . . . . . 11 Max Kills in Single Turn 4 | 1 3 1 3 3 3 . 2 . 1 . . 1 4 . . . 1 1 1 2 Gunslinging 1 | . . . . . . . . . . . . . . . . . . . . 1 Exploded 4 | . 3 . 3 2 1 . 2 . 1 . . . 4 . . . . . . 2 Melee 1 | . . 1 . . . . . . . . . . . . . . . . . 1 Uniques/NPCs Destroyed . | . . . . . . . . . . . . . . . . . . . . . Combat | -11 -10 -10 -9 -9 -9 -9 -6 -6 -6 -6 -5 -5 -5 -5 -5 -4 -4 -3 -3 -3 -------- Run | Yrd Mat Min Mat Sto Rec Scr Fac Low Low Zio Pro Fac Upp Upp Zhi Pro Fac Res Qua Frg Hostile Shots Fired 795 | . 82 3 143 142 12 . 17 . . . 2 6 10 . . 2 4 18 15 339 Missed 262 | . 25 . 39 30 2 . 11 . . . 2 2 1 . . . 3 6 7 134 Hits 533 | . 57 3 104 112 10 . 6 . . . . 4 9 . . 2 1 12 8 205 Melee 31 | . . . 2 2 . . . . . . . . . . . . . . . 27 Projectile 502 | . 57 3 102 110 10 . 6 . . . . 4 9 . . 2 1 12 8 178 AOE 10 | . . . . . 10 . . . . . . . . . . . . . . . Critical Strikes 26 | . 1 . 3 8 . . . . . . . . . . . . . . . 14 Actively Blocked 8 | . . . . . . . . . . . . . . . . . . . . 8 Part Disruptions 2 | . . . . . . . . . . . . . . . . . . 2 . . Damage Taken 11082 | . 620 35 1427 1462 533 . 133 . . . . 12 140 . . 39 24 286 150 6221 Core 1850 | . 69 . 152 156 72 . 48 . . . . . 36 . . . . . . 1317 Absorbed by Shields 53 | . . . . 40 . . . . . . . . . . . . . . 13 . Regen/Repaired (Parts) 408 | . 71 . 231 . . . 9 . . . . . . . . . . 78 . 19 Core Remaining (%) 77 | 100 . 72 . . . 5 . . . . 94 . . . . 96 100 . . . Volleys Fired 525 | 12 53 4 119 91 12 . 10 13 2 . 2 13 3 2 10 2 13 18 7 139 Largest 2 | 2 2 2 2 2 2 . 1 1 1 . 1 1 1 1 1 1 1 1 1 2 Hottest 120 | 40 90 65 68 46 46 . 85 85 85 . 85 90 43 90 90 90 105 105 105 120 Shots Fired 869 | 24 104 8 226 178 22 . 10 13 2 . 2 13 3 2 10 2 13 18 7 212 Gun 653 | 24 101 8 140 173 21 . . . . . . . . . . . . . . 186 Cannon 188 | . 1 . 74 . . . 8 13 1 . 2 13 . 2 10 2 13 18 7 24 Launcher 28 | . 2 . 12 5 1 . 2 . 1 . . . 3 . . . . . . 2 Special . | . . . . . . . . . . . . . . . . . . . . . Kinetic 691 | 24 79 5 211 173 21 . . . . . . . . . . . . . . 178 Thermal 122 | . 1 . . . . . 8 13 1 . 2 13 . 2 10 2 13 18 7 32 Explosive 26 | . 2 . 12 4 . . 2 . 1 . . . 3 . . . . . . 2 Electromagnetic 30 | . 22 3 3 1 1 . . . . . . . . . . . . . . . Robot Hit Streak 41 | 4 11 5 19 35 6 . 3 . . . . . . . 5 . . . . 41 Robot Miss Streak 6 | 2 4 1 3 4 1 . . . . . . . 3 . 1 . . . . 6 Penetration Max 2 | . . . . . . . . . . . . . . . . . . . . 2 Secondary Targets 8 | . 2 . 1 2 . . . . . . . . . . . . . . . 3 Max Gunslinging Chain 1 | . 1 . 1 1 . . . . . . . . . . . . . . . 1 Shots Hit Robots 596 | 13 61 9 171 138 16 . 3 . . . . 1 4 . 8 . 5 8 4 155 Core Hits 268 | 8 32 3 58 55 12 . 3 . 2 . . . 7 . 3 . . 1 3 81 Critical Kills 15 | . . . 1 1 . . . . . . . . . . . . . 1 . 12 Critical Parts Destroyed 29 | . . 1 1 1 . . 1 . . . . 1 2 . . . 1 2 . 19 Critical Strikes 54 | . . 1 4 2 . . 1 . . . . 1 2 . . . 1 4 . 38 Destroy 34 | . . . . 2 . . . . . . . . . . . . . . . 32 Blast 2 | . . . 2 . . . . . . . . . . . . . . . . . Smash 11 | . . 1 2 . . . 1 . . . . 1 2 . . . 1 3 . . Sever 7 | . . . . . . . . . . . . . . . . . . 1 . 6 Melee Attacks 287 | . . 12 18 33 1 . 32 11 . 1 . 26 7 5 . . 33 51 17 40 Impact 200 | . . 12 18 33 1 . 32 11 . 1 . 26 7 5 . . 33 18 . 3 Slashing 87 | . . . . . . . . . . . . . . . . . . 33 17 37 Piercing . | . . . . . . . . . . . . . . . . . . . . . Sneak Attacks 22 | . . 1 2 6 . . 1 . . . . . 4 . . . 2 2 1 3 Combat Hostiles . | . . . . . . . . . . . . . . . . . . . . . Follow-up Attacks . | . . . . . . . . . . . . . . . . . . . . . Damage Inflicted 18626 | 153 1197 186 3561 2779 322 . 522 . 37 . . 45 816 . 286 . 405 584 365 7368 Guns 11180 | 150 855 106 1711 2115 232 . . . . . . . . . . . . . . 6011 Cannons 1260 | . 20 . 954 . . . . . . . . . . . 286 . . . . . Explosions 2210 | . 284 . 552 277 86 . 446 . 37 . . . 342 . . . . . . 186 Melee 3853 | . . 80 291 379 . . 76 . . . . 45 474 . . . 405 584 365 1154 Ramming 123 | 3 38 . 53 8 4 . . . . . . . . . . . . . . 17 Kinetic 11816 | 150 613 55 2640 2115 232 . . . . . . . . . . . . . . 6011 Thermal 366 | . 80 . . . . . . . . . . . . . 286 . . . . . Explosive 1949 | . 224 . 552 162 . . 446 . 37 . . . 342 . . . . . . 186 Electromagnetic 519 | . 242 51 25 115 86 . . . . . . . . . . . . . . . Impact 2275 | . . 80 291 379 . . 76 . . . . 45 474 . . . 405 430 . 95 Slashing 1578 | . . . . . . . . . . . . . . . . . . 154 365 1059 Piercing . | . . . . . . . . . . . . . . . . . . . . . Highest Corruption 17 | . . . 1 1 1 . 1 1 1 1 . . . . . . . 2 2 17 Average Corruption 2 | . . . 1 1 1 . 1 1 1 1 . . . . . . . 1 2 7 Corruption Purged 23 | . . . . . . . . . . . . . . . . . . . . 23 Corruption Blocked . | . . . . . . . . . . . . . . . . . . . . . Effects 92 | . . . 2 16 18 . . 2 2 1 . . . . . . . . 6 45 Message Errors 18 | . . . 1 5 3 . . . . 1 . . . . . . . . 1 7 Matter Fused 21 | . . . 1 3 6 . . . . . . . . . . . . . 2 9 Heat Flow Errors 12 | . . . . 2 1 . . 1 1 . . . . . . . . . 1 6 Energy Discharges 7 | . . . . 1 1 . . . . . . . . . . . . . 1 4 Parts Rejected 2 | . . . . . 1 . . . . . . . . . . . . . . 1 Data Loss (minor) 16 | . . . . 4 4 . . 1 . . . . . . . . . . . 7 Data Loss (major) 7 | . . . . . 1 . . . 1 . . . . . . . . . 1 4 Misfires 1 | . . . . 1 . . . . . . . . . . . . . . . . Alerts 2 | . . . . . . . . . . . . . . . . . . . . 2 Misdirections 1 | . . . . . . . . . . . . . . . . . . . . 1 Weapon Failures 5 | . . . . . 1 . . . . . . . . . . . . . . 4 Overload Shots . | . . . . . . . . . . . . . . . . . . . . . Overflow Damage 1660 | . 1 42 106 162 . . 154 . . . . 45 443 . 67 . 195 260 5 180 Projectiles 97 | . . . 30 . . . . . . . . . . . 67 . . . . . Explosions 106 | . . . 11 6 . . 78 . . . . . 11 . . . . . . . Melee 1457 | . 1 42 65 156 . . 76 . . . . 45 432 . . . 195 260 5 180 Knockbacks 9 | . . . 4 2 . . . . . . . . . . . . 3 . . . Impact 6 | . . . 1 2 . . . . . . . . . . . . 3 . . . Kinetic 3 | . . . 3 . . . . . . . . . . . . . . . . . Secondary . | . . . . . . . . . . . . . . . . . . . . . Self-Inflicted Damage 183 | . 15 . 81 . 79 . . . . . . . . . . . . . . 8 Shots 6 | . . . 4 . 2 . . . . . . . . . . . . . . . Rammed 11 | 1 3 . 3 3 . . . . . . . . . . . . . . . 1 Targets Rammed 14 | 1 4 . 4 3 1 . . . . . . . . . . . . . . 1 Kicked . | . . . . . . . . . . . . . . . . . . . . . Crushed 3 | . 1 . 1 . 1 . . . . . . . . . . . . . . . Highest Temperature 324 | . 324 30 132 103 124 . 174 260 112 . 64 45 . 24 17 2 39 26 168 149 Average Temperature 38 | . 89 14 24 16 61 . 67 94 49 . 36 17 . 15 6 2 11 8 93 56 Received Heat Transfer 1658 | . 237 . 516 535 9 . 6 . . . . . . . . 12 . 30 6 307 Effects 2 | . . . . . . . . 2 . . . . . . . . . . . . Interference 2 | . . . . . . . . 2 . . . . . . . . . . . . Siege Activations . | . . . . . . . . . . . . . . . . . . . . . Martial Activations . | . . . . . . . . . . . . . . . . . . . . . Shielding Activations . | . . . . . . . . . . . . . . . . . . . . . Robots Disrupted . | . . . . . . . . . . . . . . . . . . . . . Combat Hostiles . | . . . . . . . . . . . . . . . . . . . . . Robots Corrupted 11 | . 1 1 2 4 . . . . . . . . . . . . 3 . . . Combat Hostiles 1 | . . . 1 . . . . . . . . . . . . . . . . . Parts Fried 20 | . . 2 3 7 . . 4 . . . . 1 1 . . . 2 . . . Impact Corruptions 34 | . 1 2 3 9 . . 1 . . . . 1 7 . . . 6 3 . 1 Robots Melted . | . . . . . . . . . . . . . . . . . . . . . Combat Hostiles . | . . . . . . . . . . . . . . . . . . . . . Parts Melted 1 | . . . . . . . . . . . . . . . . . . . . 1 Heat Transferred 433 | . 137 . . . . . . . . . . . . . 296 . . . . . Parts Sabotaged . | . . . . . . . . . . . . . . . . . . . . . Parts Stolen . | . . . . . . . . . . . . . . . . . . . . . Parts Stripped . | . . . . . . . . . . . . . . . . . . . . . Power Chain Reactions 2 | . 2 . . . . . . . . . . . . . . . . . . . Alert | -11 -10 -10 -9 -9 -9 -9 -6 -6 -6 -6 -5 -5 -5 -5 -5 -4 -4 -3 -3 -3 ------- Run | Yrd Mat Min Mat Sto Rec Scr Fac Low Low Zio Pro Fac Upp Upp Zhi Pro Fac Res Qua Frg Maximum Alert Level 2 | . . . 2 2 . . . . . . . . . . . . . . . 2 Low Security (%) 62 | 100 100 100 41 6 100 . 100 . . . . 100 . . . . 100 100 100 26 Level 1 22 | . . . 18 87 . . . . . . . . . . . . . . . 44 Level 2 14 | . . . 40 5 . . . . . . . . . . . . . . . 28 Level 3 . | . . . . . . . . . . . . . . . . . . . . . Level 4 . | . . . . . . . . . . . . . . . . . . . . . Level 5 . | . . . . . . . . . . . . . . . . . . . . . High Security . | . . . . . . . . . . . . . . . . . . . . . Max Security . | . . . . . . . . . . . . . . . . . . . . . Peak Influence 638 | 5 115 20 638 510 79 . 152 . . . . 32 . . . . 63 31 25 575 Initial 269 | . . 9 . 269 78 . . . . . . . . . . . . 18 . 7 Average 156 | 1 42 . 279 271 18 . 40 . . . . 7 . . . . 19 6 7 296 Influence Increases 5535 | 30 518 40 1229 917 275 . 317 . 20 . . 156 110 . 15 . 269 222 165 1252 Destroy 0b10 Robot/C 2280 | . 280 20 660 520 40 . 120 . 20 . . . 100 . . . . . . 520 Destroy 0b10 Robot/NC 400 | 30 45 5 75 90 25 . 5 . . . . 5 . . 15 . 15 15 15 60 Destroy Leader 564 | . 60 . 186 174 . . 20 . . . . 2 10 . . . 2 4 4 102 Allied During Kill 6 | . . . 2 . 4 . . . . . . . . . . . . . . . Successful Hack 244 | . 41 . 45 7 10 . 54 . . . . 10 . . . . . 24 26 27 Select Force Hacks 210 | . 60 . . . 150 . . . . . . . . . . . . . . . Disable Machine 525 | . . . 120 75 30 . 15 . . . . 75 . . . . 30 45 45 90 Destroy Structure 571 | . 17 . 66 36 16 . 58 . . . . 64 . . . . 72 104 30 108 Partial Spotted 240 | . . . 15 . . . 30 . . . . . . . . . 60 15 45 75 Lose Combat Pursuer 495 | . 15 15 60 15 . . 15 . . . . . . . . . 90 15 . 270 Influence Decreases 5161 | 30 494 64 591 1355 475 . 213 104 20 . . 156 50 60 10 5 234 257 151 892 Entered New Map 587 | . . 15 . 369 122 . . 40 . . . . . 12 . 5 . 17 . 7 Time Decay 3771 | 30 450 49 552 676 333 . 179 64 20 . . 154 50 48 10 . 224 238 131 563 Lost Part 416 | . 10 . 30 10 20 . . . . . . 2 . . . . . 2 20 322 Lost Ally 53 | . . . 9 . . . 34 . . . . . . . . . 10 . . . Purge Threat 334 | . 34 . . 300 . . . . . . . . . . . . . . . . Squads Dispatched 57 | . 3 . 2 7 . . 7 . . . . 8 . . . . 10 8 2 10 Investigation 32 | . 2 . 1 . . . 6 . . . . 7 . . . . 7 4 . 5 Extermination 11 | . . . . . . . 1 . . . . 1 . . . . 3 4 1 1 Reinforcement 10 | . 1 . 1 3 . . . . . . . . . . . . . . 1 4 Assault . | . . . . . . . . . . . . . . . . . . . . . Garrison 4 | . . . . 4 . . . . . . . . . . . . . . . . Intercept . | . . . . . . . . . . . . . . . . . . . . . Searches Triggered . | . . . . . . . . . . . . . . . . . . . . . Construction Impeded . | . . . . . . . . . . . . . . . . . . . . . Haulers Reinforced . | . . . . . . . . . . . . . . . . . . . . . Active Scanning Responses . | . . . . . . . . . . . . . . . . . . . . . Cargo Convoy Interrupts . | . . . . . . . . . . . . . . . . . . . . . Stealth | -11 -10 -10 -9 -9 -9 -9 -6 -6 -6 -6 -5 -5 -5 -5 -5 -4 -4 -3 -3 -3 --------- Run | Yrd Mat Min Mat Sto Rec Scr Fac Low Low Zio Pro Fac Upp Upp Zhi Pro Fac Res Qua Frg Distress Signals 17 | . 2 . 2 3 . . . . . . . 1 . . . . 1 1 1 6 Communications Jammed 321 | . . . . . . . . . . . . . . . . . 43 16 1 261 Distress Signals 321 | . . . . . . . . . . . . . . . . . 43 16 1 261 Times Spotted 349 | . 29 2 61 36 3 . 10 . . . 4 11 5 . . 3 12 23 13 137 Peak Tracking Total 17 | . 6 1 4 4 2 . 4 . . . 9 9 5 . . 3 4 5 4 17 Tactical Retreats 43 | . 1 1 3 1 . . 2 . . . . 4 . . . 1 3 7 5 15 ECM-based Alert Blocks 35 | . . . . . . . 2 . . . . 10 . . . 3 . 9 8 3 Traps | -11 -10 -10 -9 -9 -9 -9 -6 -6 -6 -6 -5 -5 -5 -5 -5 -4 -4 -3 -3 -3 ------- Run | Yrd Mat Min Mat Sto Rec Scr Fac Low Low Zio Pro Fac Upp Upp Zhi Pro Fac Res Qua Frg Traps Triggered 14 | . 3 . 1 3 . . 1 . . . . 2 . . . . . 2 1 1 Indirectly . | . . . . . . . . . . . . . . . . . . . . . Trap Hack Attempts . | . . . . . . . . . . . . . . . . . . . . . Triggered . | . . . . . . . . . . . . . . . . . . . . . Disarmed . | . . . . . . . . . . . . . . . . . . . . . Reprogrammed . | . . . . . . . . . . . . . . . . . . . . . Reused . | . . . . . . . . . . . . . . . . . . . . . Traps Extracted . | . . . . . . . . . . . . . . . . . . . . . Installed . | . . . . . . . . . . . . . . . . . . . . . Triggered . | . . . . . . . . . . . . . . . . . . . . . Machines | -11 -10 -10 -9 -9 -9 -9 -6 -6 -6 -6 -5 -5 -5 -5 -5 -4 -4 -3 -3 -3 ---------- Run | Yrd Mat Min Mat Sto Rec Scr Fac Low Low Zio Pro Fac Upp Upp Zhi Pro Fac Res Qua Frg Machines Disabled 40 | . 1 . 8 5 2 . 1 . . . . 5 1 1 2 . 2 3 3 6 Max in Single Turn 3 | . 1 . 2 1 2 . 1 . . . . 1 1 1 1 . 1 1 1 3 Garrison Access 3 | . . . . . . . 2 . . . . . . . . . . 1 . . Machines Repaired . | . . . . . . . . . . . . . . . . . . . . . Machines Dismantled 1 | . . . . 1 . . . . . . . . . . . . . . . . Machines Sabotaged . | . . . . . . . . . . . . . . . . . . . . . Overloaded Fab Kills . | . . . . . . . . . . . . . . . . . . . . . Hacking | -11 -10 -10 -9 -9 -9 -9 -6 -6 -6 -6 -5 -5 -5 -5 -5 -4 -4 -3 -3 -3 --------- Run | Yrd Mat Min Mat Sto Rec Scr Fac Low Low Zio Pro Fac Upp Upp Zhi Pro Fac Res Qua Frg Machines Accessed 110 | . 10 . 10 9 8 3 17 . . . . 13 . 2 5 . 8 11 4 10 Terminals 47 | . 7 . 8 7 3 . 4 . . . . 6 . . . . . 4 4 4 Fabricators 4 | . . . . . . . 1 . . . . . . . . . . . . 3 Repair Stations 7 | . 1 . 2 . . . 2 . . . . . . . . . . 2 . . Recycling Units 35 | . 2 . . 1 5 . 6 . . . . 7 . . . . 7 4 . 3 Scanalyzers 3 | . . . . . . . 2 . . . . . . . . . 1 . . . Garrison Access 4 | . . . . 1 . . 2 . . . . . . . . . . 1 . . Total Hacks 246 | . 32 . 39 19 17 7 26 . . . . 24 . 2 18 . 12 19 6 25 Successful 156 | . 21 . 25 11 10 7 16 . . . . 16 . 2 18 . 10 12 5 3 Failed 86 | . 10 . 13 8 7 . 9 . . . . 8 . . . . 1 7 1 22 Catastrophic 12 | . 1 . . 2 1 . 1 . . . . 2 . . . . . 1 1 3 Database Lockouts 4 | . 1 . 1 . . . 1 . . . . . . . . . 1 . . . Manual 125 | . 23 . 22 13 8 . 11 . . . . 20 1 . . . 8 6 3 10 Terminals 124 | . 26 . 30 16 10 . 7 . . . . 14 . . . . . 7 6 8 Fabricators 8 | . . . . . . . 1 . . . . . . . . . . . . 7 Repair Stations 20 | . 2 . 9 . . . 5 . . . . . . . . . . 4 . . Recycling Units 56 | . 4 . . 2 7 . 9 . . . . 10 . . . . 8 6 . 10 Scanalyzers 6 | . . . . . . . 2 . . . . . . . . . 4 . . . Garrison Access 5 | . . . . 1 . . 2 . . . . . . . . . . 2 . . Terminal Hacks 72 | . 9 . 8 8 4 7 5 . . . . 2 . 2 18 . . 4 5 . Record 13 | . . . . . . 6 . . . . . . . 1 6 . . . . . Part Schematic 5 | . . . . . 1 . . . . . . . . . 4 . . . . . Robot Analysis 9 | . 2 . 2 . . . . . . . . . . . 4 . . 1 . . Prototype ID Bank 9 | . 1 . 2 . 2 . . . . . . . . . 4 . . . . . Open Door 6 | . . . . 3 . . . . . . . . . 1 . . . 1 1 . Open DSF 1 | . . . . . . . . . . . . . . . . . . 1 . . Level Access Points 1 | . . . . . . . . . . . . . . . . . . . 1 . Branch Access Points 2 | . . . . . . . 1 . . . . . . . . . . . 1 . Emergency Access Points 1 | . . . 1 . . . . . . . . . . . . . . . . . Recycling Unit Index 1 | . . . . . . . . . . . . . . . . . . . 1 . Alert Level 9 | . 1 . 1 2 1 . 1 . . . . 1 . . . . . 1 1 . Unreport Threat 3 | . 1 . . 2 . . . . . . . . . . . . . . . . Locate Traps 5 | . . . 1 1 . . 2 . . . . 1 . . . . . . . . Maintenance Status 1 | . 1 . . . . . . . . . . . . . . . . . . . Patrol Status 1 | . 1 . . . . . . . . . . . . . . . . . . . Hauler Manifests 4 | . 2 . 1 . . . 1 . . . . . . . . . . . . . Proto ID Catalog 1 | . . . . . . 1 . . . . . . . . . . . . . . Fabricator Hacks 1 | . . . . . . . . . . . . . . . . . . . . 1 Build 1 | . . . . . . . . . . . . . . . . . . . . 1 Repair Station Hacks 16 | . 2 . 8 . . . 3 . . . . . . . . . . 3 . . Scan Component 9 | . 1 . 4 . . . 2 . . . . . . . . . . 2 . . Repair 7 | . 1 . 4 . . . 1 . . . . . . . . . . 1 . . Recycling Unit Hacks 3 | . . . . 2 1 . . . . . . . . . . . . . . . Process 1 | . . . . 1 . . . . . . . . . . . . . . . . Report Inventory 2 | . . . . 1 1 . . . . . . . . . . . . . . . Scanalyzer 4 | . . . . . . . 1 . . . . . . . . . 3 . . . Retrieve Study 4 | . . . . . . . 1 . . . . . . . . . 3 . . . Garrison Access Hacks 3 | . . . . . . . 2 . . . . . . . . . . 1 . . Seal Access 3 | . . . . . . . 2 . . . . . . . . . . 1 . . Unauthorized Hacks 57 | . 10 . 9 1 5 . 5 . . . . 14 . . . . 7 4 . 2 Terminals 25 | . 8 . 9 1 . . . . . . . 7 . . . . . . . . Botnet 10 | . 3 . 3 1 . . . . . . . 3 . . . . . . . . Operators 1 | . . . 1 . . . . . . . . . . . . . . . . . Skim 14 | . 5 . 5 . . . . . . . . 4 . . . . . . . . Fabricators . | . . . . . . . . . . . . . . . . . . . . . Repair Stations . | . . . . . . . . . . . . . . . . . . . . . Recycling Units 32 | . 2 . . . 5 . 5 . . . . 7 . . . . 7 4 . 2 Tunnel 7 | . 2 . . . 5 . . . . . . . . . . . . . . . Fedlink 25 | . . . . . . . 5 . . . . 7 . . . . 7 4 . 2 Scanalyzers . | . . . . . . . . . . . . . . . . . . . . . Garrison Access . | . . . . . . . . . . . . . . . . . . . . . Data Cores Recovered 2 | . . . . . . . . . . . . . . . . . . 1 . 1 Used . | . . . . . . . . . . . . . . . . . . . . . Hacking Detections 64 | . 9 . 10 7 4 . 11 . . . . 6 . . . . 1 5 2 9 Full Trace Events 6 | . . . 2 . . . 1 . . . . . . . . . . . . 3 Feedback Events 2 | . . . 1 . . . 1 . . . . . . . . . . . . . Corruption 2 | . . . 1 . . . 1 . . . . . . . . . . . . . Feedback Blocked . | . . . . . . . . . . . . . . . . . . . . . Robot Schematics Acquired . | . . . . . . . . . . . . . . . . . . . . . Robots Built 1 | . . . . . . . . . . . . . . . . . . . . 1 Authchips . | . . . . . . . . . . . . . . . . . . . . . Time 62 | . . . . . . . . . . . . . . . . . . . . 62 Total Robot Build Rating 7 | . . . . . . . . . . . . . . . . . . . . 7 Part Schematics Acquired 5 | . . . . . 1 . . . . . . . . . 4 . . . . . Parts Built . | . . . . . . . . . . . . . . . . . . . . . Authchips . | . . . . . . . . . . . . . . . . . . . . . Time . | . . . . . . . . . . . . . . . . . . . . . Total Part Build Rating . | . . . . . . . . . . . . . . . . . . . . . Part Studies Acquired 4 | . . . . . . . 1 . . . . . . . . . 3 . . . Parts Repaired 6 | . 1 . 3 . . . 1 . . . . . . . . . . 1 . . Time 225 | . 26 . 110 . . . 61 . . . . . . . . . . 28 . . Parts Recycled . | . . . . . . . . . . . . . . . . . . . . . Recycled Matter 9 | . . . . 9 . . . . . . . . . . . . . . . . Retrieved Matter . | . . . . . . . . . . . . . . . . . . . . . Retrieved Components . | . . . . . . . . . . . . . . . . . . . . . Parts Scanalyzed . | . . . . . . . . . . . . . . . . . . . . . Part Schematics Acquired . | . . . . . . . . . . . . . . . . . . . . . Parts Damaged . | . . . . . . . . . . . . . . . . . . . . . Bothacking | -11 -10 -10 -9 -9 -9 -9 -6 -6 -6 -6 -5 -5 -5 -5 -5 -4 -4 -3 -3 -3 ------------ Run | Yrd Mat Min Mat Sto Rec Scr Fac Low Low Zio Pro Fac Upp Upp Zhi Pro Fac Res Qua Frg Used RIF Installer . | . . . . . . . . . . . . . . . . . . . . . Robots Hacked . | . . . . . . . . . . . . . . . . . . . . . Non-combat . | . . . . . . . . . . . . . . . . . . . . . Combat . | . . . . . . . . . . . . . . . . . . . . . Robot Hacks Applied . | . . . . . . . . . . . . . . . . . . . . . Relay Couplers Released . | . . . . . . . . . . . . . . . . . . . . . Fabnet Peak Effective % . | . . . . . . . . . . . . . . . . . . . . . Robots Rewired 9 | . . . . . 9 . . . . . . . . . . . . . . . Allies Hacked . | . . . . . . . . . . . . . . . . . . . . . Hacks Repelled . | . . . . . . . . . . . . . . . . . . . . . Allies | -11 -10 -10 -9 -9 -9 -9 -6 -6 -6 -6 -5 -5 -5 -5 -5 -4 -4 -3 -3 -3 -------- Run | Yrd Mat Min Mat Sto Rec Scr Fac Low Low Zio Pro Fac Upp Upp Zhi Pro Fac Res Qua Frg Total Allies 13 | . . 2 . . 9 . . . . . . . . . . . 1 . . 1 Largest Group 9 | . . 2 2 . 9 9 9 . . . . . . . . . 1 . . 1 Highest-Rated Group 171 | . . 42 42 . 171 171 171 . . . . . . . . . 26 . . 93 Highest-Rated Ally 93 | . . 31 31 . 34 34 34 . . . . . . . . . 26 . . 93 Initial UFD Resources 117 | . . . . . . . 23 43 43 43 45 45 69 69 69 73 73 99 117 117 Total Orders 15 | . . . . . . 3 1 . . 1 . 2 . . . . 4 4 . . STAY 3 | . . . . . . 2 1 . . . . . . . . . . . . . FOLLOW 1 | . . . . . . 1 . . . . . . . . . . . . . . RETURN 11 | . . . . . . . . . . 1 . 2 . . . . 4 4 . . Ally Attacks 22 | . . . 10 . . . 12 . . . . . . . . . . . . . Total Damage 523 | . . . 129 . . . 394 . . . . . . . . . . . . . Kills 4 | . . . 2 . . . 2 . . . . . . . . . . . . . Allies Corrupted . | . . . . . . . . . . . . . . . . . . . . . Allies Melted 1 | . . . . . . . . . . . . . . . . . . . . 1 Intel | -11 -10 -10 -9 -9 -9 -9 -6 -6 -6 -6 -5 -5 -5 -5 -5 -4 -4 -3 -3 -3 ------- Run | Yrd Mat Min Mat Sto Rec Scr Fac Low Low Zio Pro Fac Upp Upp Zhi Pro Fac Res Qua Frg Active Infowar (turns) 12693 | 22 102 . 1089 365 422 3737 686 615 376 313 56 506 150 145 78 93 624 931 492 1891 Optics 5428 | . . . . . . . 441 615 376 313 56 506 150 145 78 93 624 925 491 615 Sensors 6930 | . . . . . . . 676 615 376 301 56 503 150 145 78 93 624 930 492 1891 Structural 5322 | . . . 1 . . 1305 452 1 . 255 56 505 150 145 78 93 624 931 485 241 Seismic 4782 | 22 102 . 1088 365 422 2783 . . . . . . . . . . . . . . Machine Analysis 1876 | . . . . . . . . . . . . . . . . . . 880 492 504 Cloaking 2316 | . . . . . . . . . . . . 181 148 144 71 58 624 931 159 . Jamming 3127 | . . . . . . . 2 . . . . 19 . . . . 622 931 485 1068 ECM 1433 | . . . . . . . 93 1 . . . 130 . . . 33 72 269 380 455 Robot Analysis Total 9 | . 2 . 2 . . . . . . . . . . . 4 . . 1 . . Derelict Logs Recovered 6 | . . 1 . . . . . . 1 1 . . 1 1 . 1 . . . . Drone Launches 14 | . . . . . . . . 3 . . . 2 . . . . 5 4 . . Drone Recoveries 14 | . . . . . . . . . . 3 . 2 . . . . 5 4 . . Exploration | -11 -10 -10 -9 -9 -9 -9 -6 -6 -6 -6 -5 -5 -5 -5 -5 -4 -4 -3 -3 -3 ------------- Run | Yrd Mat Min Mat Sto Rec Scr Fac Low Low Zio Pro Fac Upp Upp Zhi Pro Fac Res Qua Frg Turns Passed 23658 | 197 2008 1265 4742 2643 1931 3737 686 615 376 313 56 506 150 145 78 93 624 931 492 2070 Spaces Moved 19441 | 95 1007 518 1681 863 695 1959 1488 501 460 871 192 1066 429 476 176 321 1464 1902 942 2335 Core 81 | 7 . . . . . 1 . . . . . . . . . . . . . 73 Treads 5308 | 88 664 . 1681 863 695 1286 . . . . . . . . . . . . . 31 Legs 90 | . . . . . . . . . . . . . . . . . . . . 90 Wheels 1981 | . 343 518 . . . 331 1 . . . . . . . . . . . . 788 Hover . | . . . . . . . . . . . . . . . . . . . . . Flight 11981 | . . . . . . 341 1487 501 460 871 192 1066 429 476 176 321 1464 1902 942 1353 Fastest Speed 24 | 50 160 190 240 240 240 34 24 27 27 27 27 24 24 24 25 25 25 25 27 26 Average Speed 94 | 151 171 190 240 240 240 186 27 27 27 27 27 28 24 24 25 25 25 27 28 52 Slowest Speed 1600 | 160 320 190 320 240 240 1600 116 27 27 27 27 92 24 25 25 25 25 101 100 285 Overloaded Moves . | . . . . . . . . . . . . . . . . . . . . . Propulsion Burnouts . | . . . . . . . . . . . . . . . . . . . . . Robots Hopped 39 | . . . . . . . 2 . 2 . . 1 . . . . 10 14 . 10 Potential Cave-ins 13 | . . . . . . . . 2 . . . . . . . . . . . 11 Cave-ins Triggered . | . . . . . . . . . . . . . . . . . . . . . Exploration Rate (%) 68 | 4 97 98 98 95 98 96 43 68 64 90 50 39 73 73 61 58 45 56 76 57 Regions Visited 20 Branch Regions 14 Pre-discovered Areas 17 | . 4 . 3 . 5 1 1 . . . . . . . 3 . . . . . Known Exits Taken 16 | . . 1 1 1 . . 1 1 1 1 1 1 1 1 1 1 1 1 1 . Unknown Exits Taken 4 | 1 1 . . . 1 1 . . . . . . . . . . . . . . Scrap Searched 28 | . . 3 . . . 5 . 9 . 2 1 . 3 2 . 3 . . . . Spaces Dug 270 | . . . 11 10 1 . 36 20 1 . 1 31 2 5 . 2 36 55 15 44 Terrain Destroyed 523 | . 14 . 64 31 18 . 58 24 20 . 2 33 46 5 . 2 37 55 15 99 Melee 169 | . . . 5 10 1 . 29 11 . . . 20 2 3 . . 25 37 9 17 Projectile 164 | . . . 2 1 2 . 8 13 1 . 2 13 . 2 . 2 12 18 6 82 AOE 190 | . 14 . 57 20 15 . 21 . 19 . . . 44 . . . . . . . Terrain Rammed . | . . . . . . . . . . . . . . . . . . . . . Walls Destroyed . | . . . . . . . . . . . . . . . . . . . . . Machines Disabled . | . . . . . . . . . . . . . . . . . . . . . Actions | -11 -10 -10 -9 -9 -9 -9 -6 -6 -6 -6 -5 -5 -5 -5 -5 -4 -4 -3 -3 -3 --------- Run | Yrd Mat Min Mat Sto Rec Scr Fac Low Low Zio Pro Fac Upp Upp Zhi Pro Fac Res Qua Frg Total 23376 | 122 1183 770 2141 1170 935 2056 1691 943 705 945 193 1194 455 490 198 329 1629 2193 1135 2899 Wait 2128 | 3 41 233 202 79 26 28 89 417 244 57 . 43 5 4 . . 107 156 109 285 Move 19349 | 94 1006 517 1680 862 694 1958 1483 500 456 870 191 1063 428 475 175 320 1444 1875 941 2317 Hop 33 | . . . . . . . 2 . 1 . . 1 . . . . 9 12 . 8 Pick Up 147 | 5 32 1 22 14 4 27 14 . . 3 . 2 . . . . 1 2 9 11 Fast Attach 129 | 7 8 . 12 1 . 8 9 . . 3 . 5 4 1 5 1 3 10 7 45 Attach 61 | . 2 . 4 4 4 5 12 . . . . 2 . . . . 1 8 5 14 Detach 45 | . 2 . 1 . . 7 7 . . . . . . . . . . 9 4 15 Swap 184 | . 16 2 40 36 2 4 11 2 2 5 . 16 4 1 3 4 12 10 7 7 Drop 210 | . 19 1 39 29 3 19 22 . . 6 . 8 4 2 5 2 6 12 16 17 Fire 525 | 12 53 4 119 91 12 . 10 13 2 . 2 13 3 2 10 2 13 18 7 139 Melee 287 | . . 12 18 33 1 . 32 11 . 1 . 26 7 5 . . 33 51 17 40 Ram 2 | . 1 . . . . . . . . . . . . . . . . . . 1 Kick . | . . . . . . . . . . . . . . . . . . . . . Crush 12 | 1 3 . 4 3 1 . . . . . . . . . . . . . . . Escape Stasis 58 | . . . . . . . . . . . . 15 . . . . . 30 13 . Rewire 188 | . . . . . 188 . . . . . . . . . . . . . . . Trap . | . . . . . . . . . . . . . . . . . . . . . Miscellaneous 18 | . . . . 18 . . . . . . . . . . . . . . . . Route ------- -11/Scrapyard -10/Materials (discovered 6 exits: *Mat x3 / [*Min x2] / Sub) -10/Mines (discovered 3 exits: *Mat x2 / *Sub) -9/Materials (discovered 7 exits: *Mat x3 / *Min x2 / *Sto x2) -9/Storage (discovered 2 exits: *Mat / *Rec) -9/Recycling (discovered 2 exits: *Fac / *Scr) -9/Scraptown (discovered 2 exits: *Fac x2) -6/Factory (discovered 3 exits: *Fac / *Low x2) -6/Lower Caves -6/Lower Caves (discovered 2 exits: *Fac / *Zio) -6/Zion -5/Proximity Caves -5/Factory (discovered 3 exits: *Fac / *Upp x2) -5/Upper Caves -5/Upper Caves (discovered 2 exits: *Fac / *Zhi) -5/Zhirov -4/Proximity Caves -4/Factory (discovered 4 exits: *Res x4) -3/Research (discovered 5 exits: *Res x3 / *Arm / *Qua) -3/Quarantine (discovered 3 exits: Res / *Sec / *Frg) -3/Protoforge History --------- Turn | Location | Event 8 | -11/Scrapyard | Discovered new exit (range 15) 198 | -11/Scrapyard | Entered Materials 321 | -10/Materials | Build established: Mutant 538 | -10/Materials | Discovered new exit (range 16) 641 | -10/Materials | Discovered new exit (range 15) 831 | -10/Materials | Discovered new exit (range 13) 847 | -10/Materials | Central database locked down 860 | -10/Materials | Discovered new exit (range 16) 913 | -10/Materials | Learned 2 Storage zone layouts 943 | -10/Materials | Learned 4 Subcaves zone layouts 965 | -10/Materials | Loaded intel: 11 trap records 977 | -10/Materials | Learned location of 1 exit from Recycling 978 | -10/Materials | Identified exit to Materials 979 | -10/Materials | Identified exit to Subcaves 980 | -10/Materials | Learned 2 Storage zone layouts 981 | -10/Materials | Learned location of Subcaves (-10) 988 | -10/Materials | Learned location of 1 exit from Storage 2074 | -10/Materials | Repaired Lgt. Treads 2206 | -10/Materials | Entered Mines 2328 | -10/Mines | Deemed a non-threat by the Exiles lab entrance 2488 | -10/Mines | Found a hidden stash of uninstalled traps 2667 | -10/Mines | Learned Materials stockpile data 2693 | -10/Mines | Excavation squad dispatched 2693 | -10/Mines | A large section of the Mines collapsed 3077 | -10/Mines | Discovered exit to Subcaves (range 10) 3471 | -10/Mines | Entered Materials 3471 | -9/Materials | Accompanied by 2 allies 3471 | -9/Materials | Evolved 2 slots: Propulsion x1, Utility x1 3476 | -9/Materials | Led the pair of lost Derelicts to an unsafe place 3652 | -9/Materials | Discovered new exit (range 15) 4245 | -9/Materials | Discovered new exit (range 16) 4250 | -9/Materials | Discovered new exit (range 16) 4422 | -9/Materials | Repaired Med. Armor Plating 4519 | -9/Materials | Build established: Scavenger-Mutant 4551 | -9/Materials | Discovered new exit (range 15) 4614 | -9/Materials | Learned location of Zion (-6) 4651 | -9/Materials | Identified exit to Storage 4651 | -9/Materials | Identified exit to Materials 4651 | -9/Materials | Identified exit to Mines 4679 | -9/Materials | Learned Storage emergency access door positions 4709 | -9/Materials | Learned 4 Recycling zone layouts 4743 | -9/Materials | Loaded intel: 26 trap records 4909 | -9/Materials | Central database locked down 4978 | -9/Materials | Build established: Mutant 6042 | -9/Materials | Build established: Scavenger-Mutant 6433 | -9/Materials | Build established: Mutant 8117 | -9/Materials | Repaired Lgt. Treads 8145 | -9/Materials | Repaired Lgt. Treads 8213 | -9/Materials | Entered Storage 8215 | -9/Storage | Identified exit to Recycling 8241 | -9/Storage | Garrison activated, responded to threat 8592 | -9/Storage | Core integrity fell below 50% 9047 | -9/Storage | Build established: Scavenger-Mutant 9369 | -9/Storage | Build established: Mutant 9378 | -9/Storage | Garrison activated, responded to threat 9404 | -9/Storage | Found Prototype Launcher 9404 | -9/Storage | Identified Gui. EMP Blaster 10856 | -9/Storage | Entered Recycling 10857 | -9/Recycling | Identified exit to Factory 11702 | -9/Recycling | Core integrity fell below 20% 12169 | -9/Recycling | Build established: Commander-Mutant 12707 | -9/Recycling | Scanned before Scraplab entrance 12741 | -9/Recycling | Entered Scraplab 12760 | -9/Recycling | Discovered new exit (range 3) 12787 | -9/Recycling | Entered Scraptown 12787 | -9/Scraptown | Accompanied by 9 allies 12787 | -9/Scraptown | System corruption cleaned by C-Scrubber 13074 | -9/Scraptown | Heard Great Nut preacher, LISTEN AND RECITE! 13429 | -9/Scraptown | Discovered new exit (range 7) 13643 | -9/Scraptown | Visited Artisan Demo Area 14196 | -9/Scraptown | Visited Supply Room 14332 | -9/Scraptown | Visited Spacefarers 14452 | -9/Scraptown | Visited SPCMW 14582 | -9/Scraptown | Visited Red Mages 14644 | -9/Scraptown | Visited Fellowship of the Rings 14680 | -9/Scraptown | Visited The Evicted 15062 | -9/Scraptown | Visited UFD Registry 15062 | -9/Scraptown | Registered with UFD as "Maceranger" 15158 | -9/Scraptown | Visited Cartography Club 15219 | -9/Scraptown | Found Deep Structural Scanner 15238 | -9/Scraptown | Visited Science Testing Area 15255 | -9/Scraptown | Discovered new exit (range 10) 15280 | -9/Scraptown | Visited Curators Association 15291 | -9/Scraptown | Visited Research Penetration Think Tank 15296 | -9/Scraptown | Visited Infowarlord's Domain 15301 | -9/Scraptown | Found Exp. Sensor Array 15684 | -9/Scraptown | Visited Chapter 10 16061 | -9/Scraptown | Visited DA-N13 Charitable Foundation 16088 | -9/Scraptown | Found DCF Scrap (30 items) 16150 | -9/Scraptown | Visited Abandonware Association 16160 | -9/Scraptown | Learned abandonware demo "OVRCLOCK.EXE" 16167 | -9/Scraptown | Learned abandonware demo "HACKBUD.EXE" 16167 | -9/Scraptown | Learned abandonware demo "POISON.EXE" 16194 | -9/Scraptown | Visited Science Guys 16450 | -9/Scraptown | Met Optimus 16450 | -9/Scraptown | Accepted into 0bPrime 16524 | -9/Scraptown | Entered Factory 16524 | -6/Factory | Accompanied by 9 allies 16524 | -6/Factory | Evolved 6 slots: Propulsion x3, Utility x3 16630 | -6/Factory | Loaded intel: 8 recycling unit locations 16675 | -6/Factory | Discovered new exit (range 7) 16676 | -6/Factory | Identified exit to Lower Caves 16724 | -6/Factory | Repaired Broken Transmission Jammer 16789 | -6/Factory | Learned location of Protoforge (-3) 16810 | -6/Factory | Discovered new exit (range 19) 16826 | -6/Factory | Identified exit to Factory 16832 | -6/Factory | Central database locked down 17210 | -6/Factory | Entered Lower Caves 17518 | -6/Lower Caves | Build established: Scout 17683 | -6/Lower Caves | Discovered new exit (range 11) 17812 | -6/Lower Caves | Identified exit to Lower Caves 17825 | -6/Lower Caves | Entered another Lower Caves area 17825 | -6/Lower Caves | Accompanied by 3 allies 17852 | -6/Lower Caves | Encountered a Warlord checkpoint 17868 | -6/Lower Caves | Discovered exit to Factory (range 14) 18015 | -6/Lower Caves | Learned Factory non-interactive machine intel 18141 | -6/Lower Caves | Discovered new exit (range 17) 18192 | -6/Lower Caves | Identified exit to Zion 18201 | -6/Lower Caves | Entered Zion 18201 | -6/Zion | Accompanied by 3 allies 18255 | -6/Zion | Found Prototype Device 18256 | -6/Zion | Identified Phasing AFG 18276 | -6/Zion | Discovered new exit (range 9) 18287 | -6/Zion | System corruption cleaned by Quarantine Array 18303 | -6/Zion | Given the Hacking Drone Bay 18304 | -6/Zion | Found Prototype Device 18306 | -6/Zion | Identified Hacking Drone Bay 18349 | -6/Zion | Found Prototype Device 18349 | -6/Zion | Identified Bomb Factory No. 2 18407 | -6/Zion | Learned Factory garrison access intel 18466 | -6/Zion | Turned away by Imprinter 18514 | -6/Zion | Identified exit to Proximity Caves 18514 | -6/Zion | Entered Proximity Caves 18565 | -5/Proximity Caves | Discovered exit to Factory (range 19) 18570 | -5/Proximity Caves | Entered Factory 18570 | -5/Factory | Evolved 2 slots: Power x1, Utility x1 18571 | -5/Factory | Loaded intel: 224 non-interactive machine locations 18572 | -5/Factory | Loaded intel: 4 garrison access locations 18629 | -5/Factory | Loaded intel: 8 recycling unit locations 18680 | -5/Factory | Discovered new exit (range 21) 18685 | -5/Factory | Identified exit to Upper Caves 18745 | -5/Factory | Discovered new exit (range 18) 18752 | -5/Factory | Identified exit to Factory 18836 | -5/Factory | Discovered exit to Upper Caves (range 7) 19076 | -5/Factory | Entered Upper Caves 19077 | -5/Upper Caves | Encountered a Warlord checkpoint 19089 | -5/Upper Caves | Acquired the password to a Derelict Tinkerer's latest research 19093 | -5/Upper Caves | Found Prototype Special Weapon 19093 | -5/Upper Caves | Identified Molecular Deconstructor 19165 | -5/Upper Caves | Discovered new exit (range 7) 19226 | -5/Upper Caves | Identified exit to Upper Caves 19226 | -5/Upper Caves | Entered another Upper Caves area 19237 | -5/Upper Caves | Discovered exit to Factory (range 9) 19263 | -5/Upper Caves | Build established: Ninja 19342 | -5/Upper Caves | Discovered new exit (range 13) 19345 | -5/Upper Caves | Identified exit to Zhirov 19371 | -5/Upper Caves | Entered Zhirov 19371 | -5/Zhirov | Discovered new exit (range 3) 19376 | -5/Zhirov | Met Zhirov 19381 | -5/Zhirov | Learned location of Quarantine (-3) 19381 | -5/Zhirov | Learned location of Testing (-2) 19384 | -5/Zhirov | Zhirov requested help retrieving the SGEMP Prototype 19391 | -5/Zhirov | Found Alien Artifact 19391 | -5/Zhirov | Identified Integrated Reactor 19391 | -5/Zhirov | Installed Integrated Reactor, increased core energy generation (+10) 19449 | -5/Zhirov | Identified exit to Proximity Caves 19449 | -5/Zhirov | Entered Proximity Caves 19491 | -4/Proximity Caves | Spotted B-86 Titan 19502 | -4/Proximity Caves | Discovered exit to Factory (range 9) 19510 | -4/Proximity Caves | Learned location of 1 exit from Research 19542 | -4/Proximity Caves | Entered Factory 19542 | -4/Factory | Evolved 2 slots: Utility x2 19584 | -4/Factory | Watched by a mysterious "MATRIX" hacker. 19584 | -4/Factory | Central database locked down 19591 | -4/Factory | Discovered new exit (range 17) 19643 | -4/Factory | Loaded intel: 8 recycling unit locations 19818 | -4/Factory | Identified exit to Research 19850 | -4/Factory | Build established: Infiltrator-Ninja 20166 | -4/Factory | Entered Research 20166 | -3/Research | Evolved 2 slots: Utility x2 20167 | -3/Research | Identified exit to Armory 20168 | -3/Research | Identified exit to Research 20180 | -3/Research | Discovered exit to Research (range 9) 20256 | -3/Research | Spotted B-86 Titan 20360 | -3/Research | Identified exit to DSF 20538 | -3/Research | Found Prototype Processor 20538 | -3/Research | Identified Exp. Targeting Computer 20601 | -3/Research | Repaired Adv. Cooling System 20689 | -3/Research | Loaded intel: 5 recycling unit locations 20701 | -3/Research | Discovered new exit (range 8) 20703 | -3/Research | Identified exit to Quarantine 20719 | -3/Research | Spotted B-86 Titan 20921 | -3/Research | Discovered exit to Research (range 15) 21097 | -3/Research | Entered Quarantine 21129 | -3/Quarantine | Found Fusion Bomb Launcher 21162 | -3/Quarantine | Found Spectral Analyzer 21185 | -3/Quarantine | Found Alien Impact Weapon 21185 | -3/Quarantine | Identified Core Stripper 21375 | -3/Quarantine | Found Alien Launcher 21436 | -3/Quarantine | Found Alien Artifact 21460 | -3/Quarantine | Met incapacitated Sigix Warrior 21460 | -3/Quarantine | Lockdown squad dispatched 21492 | -3/Quarantine | Spotted Lightning 21492 | -3/Quarantine | Spotted Lightning 21563 | -3/Quarantine | Spotted Fortress 21586 | -3/Quarantine | Discovered new exit (range 6) 21586 | -3/Quarantine | Discovered new exit (range 6) 21587 | -3/Quarantine | Identified exit to Protoforge 21588 | -3/Quarantine | Identified exit to Section 7 21589 | -3/Quarantine | Entered Protoforge 21640 | -3/Protoforge | Spotted Hotshot 21708 | -3/Protoforge | Spotted Hotshot 21708 | -3/Protoforge | Spotted Hotshot 21781 | -3/Protoforge | Superfortress began startup sequence 21923 | -3/Protoforge | Spotted B-86 Titan 21950 | -3/Protoforge | Spotted AP7-3 21950 | -3/Protoforge | Spotted AP7-3 21988 | -3/Protoforge | Spotted Hotshot 21988 | -3/Protoforge | Spotted Hotshot 22005 | -3/Protoforge | Spotted Decapitator 22005 | -3/Protoforge | Spotted Decapitator 22018 | -3/Protoforge | UFD initiated attack on Protoforge (Readiness: High) 22018 | -3/Protoforge | Loaded intel: 3 recycling unit locations 22034 | -3/Protoforge | Lost 3 parts (1u2w) 22044 | -3/Protoforge | Spotted EXE-6 22045 | -3/Protoforge | Spotted EXE-6 22049 | -3/Protoforge | Found Prototype Processor 22051 | -3/Protoforge | Found Prototype Ballistic Gun 22051 | -3/Protoforge | Identified Cep. XC Strikerail 22053 | -3/Protoforge | Found Cep. XC Strikerail 22055 | -3/Protoforge | Optimus greeted in Protoforge 22055 | -3/Protoforge | Found Prototype Device 22055 | -3/Protoforge | Identified Exp. Kinecellerator 22057 | -3/Protoforge | Found Prototype Processor 22057 | -3/Protoforge | Identified Exp. Armor Integrity Analyzer 22076 | -3/Protoforge | Identified Exp. Core Analyzer 22086 | -3/Protoforge | Forge Plexus network access discovered 22098 | -3/Protoforge | Destroyed Decapitator 22102 | -3/Protoforge | Found Cep. Concussive Dispersal Blaster 22108 | -3/Protoforge | Spotted Decapitator 22109 | -3/Protoforge | Spotted Decapitator 22109 | -3/Protoforge | Spotted Decapitator 22111 | -3/Protoforge | Destroyed Decapitator 22138 | -3/Protoforge | Lost 12 allies 22199 | -3/Protoforge | Found Exp. System Purifier 22221 | -3/Protoforge | Met 7R-MNS 22224 | -3/Protoforge | Fabricated A-27 Freighter? 22228 | -3/Protoforge | Spotted Striker 22228 | -3/Protoforge | Spotted Striker 22229 | -3/Protoforge | Destroyed Striker 22231 | -3/Protoforge | Spotted Striker 22231 | -3/Protoforge | Spotted Striker 22232 | -3/Protoforge | Destroyed Striker 22238 | -3/Protoforge | Destroyed Striker 22290 | -3/Protoforge | UFD reported confirmed Drillbomb installation 22301 | -3/Protoforge | Destroyed 11 combat bots 22326 | -3/Protoforge | Spotted Striker 22328 | -3/Protoforge | Spotted Striker 22330 | -3/Protoforge | Spotted Striker 22362 | -3/Protoforge | Lost 3 parts (1p1n1u) 22414 | -3/Protoforge | Spotted Striker 22420 | -3/Protoforge | Spotted Executioner 22468 | -3/Protoforge | Spotted Striker 22471 | -3/Protoforge | Spotted Striker 22478 | -3/Protoforge | Destroyed Striker 22498 | -3/Protoforge | Core integrity fell below 50% 22500 | -3/Protoforge | Destroyed Striker 22533 | -3/Protoforge | Lost 6 parts (1p3n2u) 22543 | -3/Protoforge | Lost 8 allies 22545 | -3/Protoforge | UFD reported confirmed Drillbomb installation 22546 | -3/Protoforge | Spotted Executioner 22552 | -3/Protoforge | P-80 Master assimilated allied 03F52-D 22552 | -3/Protoforge | Spotted Executioner 22569 | -3/Protoforge | Found Exp. Core Analyzer 22588 | -3/Protoforge | Spotted Decapitator 22589 | -3/Protoforge | Spotted Striker 22590 | -3/Protoforge | Spotted Decapitator 22590 | -3/Protoforge | Spotted Decapitator 22600 | -3/Protoforge | Spotted Striker 22606 | -3/Protoforge | Spotted Striker 22609 | -3/Protoforge | Build established: Scavenger-Mutant 22619 | -3/Protoforge | Spotted Hotshot 22623 | -3/Protoforge | Spotted Overlord 22627 | -3/Protoforge | Spotted Hotshot 22635 | -3/Protoforge | Spotted Hotshot 22663 | -3/Protoforge | Core integrity fell below 20% 22695 | -3/Protoforge | Lost 11 parts (1p5n3u2w) 22700 | -3/Protoforge | Lost 20 allies 22708 | -3/Protoforge | Found Corrupted Scrap Suit 22730 | -3/Protoforge | System corruption reached 10% 22741 | -3/Protoforge | Found Scrap Suit 22862 | -3/Protoforge | Spotted Striker 22862 | -3/Protoforge | Spotted Executioner 22895 | -3/Protoforge | Spotted Executioner 22895 | -3/Protoforge | Spotted Striker 22906 | -3/Protoforge | Destroyed Executioner 22917 | -3/Protoforge | Spotted Striker 22953 | -3/Protoforge | Lost 6 parts (2p1n1u2w) 22961 | -3/Protoforge | Lost 8 allies 22993 | -3/Protoforge | Build established: Scavenger-Scrapper 23037 | -3/Protoforge | Found Exp. System Purifier 23235 | -3/Protoforge | UFD reported confirmed Drillbomb installation 23293 | -3/Protoforge | Spotted EXE-6 23302 | -3/Protoforge | Lost 4 allies 23392 | -3/Protoforge | Spotted Hotshot 23459 | -3/Protoforge | Lost 4 allies 23483 | -3/Protoforge | Spotted Executioner 23532 | -3/Protoforge | Found Exp. Core Analyzer 23579 | -3/Protoforge | Spotted Executioner 23631 | -3/Protoforge | Spotted SKR-2 23636 | -3/Protoforge | Destroyed SKR-2 23639 | -3/Protoforge | Spotted Immortal 23640 | -3/Protoforge | Spotted Immortal 23640 | -3/Protoforge | Spotted Executioner 23640 | -3/Protoforge | Spotted Executioner 23640 | -3/Protoforge | Spotted Immortal 23659 | -3/Protoforge | Destroyed by P-80 Master with Gamma Rifle Last Messages --------------- Coolant Network. 23655_ Slug penetrates Immortal. 23655_ Immortal destroyed. 23655_ 03F19-K suffers critical hit (Impale). 23656_ 03FCM-D suffers critical hit (Destroy). 23656_ 03FCM-D destroyed. 23656_ Slug penetrates 03F19-K. 23656_ N-04 Retriever collects Lgt. Antimatter Reactor. 23656_ N-04 Retriever collects Mak. Coolant Network. 23656_ N-04 Retriever collects Impulse Thruster Array. 23656_ N-04 Retriever collects Neutrino Core. 23656_ Slug penetrates Immortal. 23656_ Immortal suffers critical hit (Destroy). 23656_ Immortal destroyed. 23657_ Slug penetrates 03F19-K. 23657_ Executioner suffers critical hit (Destroy). 23658_ N-04 Retriever collects Corrupted Ovr. Medium Treads. 23658_ 03F19-K suffers critical hit (Impale). 23658_ Slug penetrates Immortal. 23658_ Slug penetrates Wall. Map ----- +----------------------------------------------------+ | ?###??????+ +?????????##???## ?????????????????? | | ?###??????# #?????????# ???# #??#?###?????????? | | ?###??????# ######## "# ##?# ### ## ######????? | | ####??????# # """ " ; ## ####"# ######????? | | ########### # # # ##????? | | ??######### # ; " " ##????? | | ########### # ; ;;; ; ! "" " " ####### | | ########### ###+"" #;;;;[ ;[ ####### | | !% %% %%; " "" %#% ## | | * !%=%%!E %%%%%% ; %"%% "% " # | | ! %[* =%E% % %%% *!%%%s %%% # | | ### ###;#g#"""%[[!"=%* ; &%% *!%=!%% % # ## | | ### # !%! "# ! | ;!;;;%!/%!%!=[;;;## ## | | ### # = !|" % %%%%%=!!!; ; # ## | | ??# # *%" !==!% !%%%!&!%[!! ; ; ]# | | "?# # =!; [!![!% % !%*l/E%%*; ;!;![*!## | | ??# # """" ;#""%[%"%;%% %!%%%SS=|% ;;;!! "# | | "?# # """" %;% =%%%%%%%%%%%%%%SS%%%%%% ;% """" | | ??# # """"% =##;;!!* %% % !*%%%;%n % %% % | | "?# # """" %# !*![/ %% % % %%;%%%%%%%%%%% | | ??# # ; ![!|!;;;;;;;%; ;% n %%% % %% | | "?# #########" ; !=/%% % % % %%%%%;;%"#" | | ??# ####?# ##### ## [%= % % %; %&;; #%## | | "?+ ######""###??# ; % ;; %%;! ### | | ??# #? ?##?# ## % !% ! % ;; ; ### # | | ??# " " ##?? # @ [=% %;%% ; ###### | | ### # """ # ### # * %% % m% ##"##### | | # " " ## # # % %![; &%;# | | # """"" ### = %% *% ;;%% ## """" | | # """" #### ## %%[%% ; % # """" | | ? " # """" ### % % %% %% % # """" | | #"""% # ## % ; + """" | | # ""%" "%![ # & %%% %%%%= # | | # " " [=[!%*="##;" # %% != # | | ##" /%*%=!%% & %= % ;;;;### | | # " !% [!%%& %%s % % %% % #### | | # " % **%%% % % m % %% ########## | | # " [!!% % %g C =!|% %=% ########### | | ####"#"#[[!#!" " sp% =!= ########## | | #####" ! ";! !%% %;;############ | | ??###"# "" ";%%% % % ##### | | ??##### """ "" #; %# ! " % ##### ###### | | ####### """ T" #; %% ### #[; &% ##### ###### | | ####### """ "" ;; ### ###*=" ] % ##### ###### | | ??? + """ " "% bp ## ###"%! =%!% ##### # | | ####### """ """%%;#######" =%"!! "#### #""" | | ####### """ "="%"#########[% ##### #""" | | ???#### # %!"###### ##[=* ##### #"""?? | | ???#########"""" " " #####""#[!!%+""####### #"S ? | | ???######### " "###### [ % ! #"" ? | +----------------------------------------------------+ Best States ------------- Heat Dissipation 84 Coolant Potential 120 Energy Generation 53 Energy Capacity 400 Matter Stores 406 Matter Capacity 500 Sight Range 24 Robot Scan Range 20 Terrain Scan Density 10 ECM Strength 1 Jamming Range 16 Cloak Strength 3 Power Amplification 20 Armor Coverage 750 Resistance: EM 15 Propulsion Shielding 33 Evasion (%) 78 Target Analysis 8 Core Analysis 12 Armor Integrity Analysis 50 Recoil Reduction 3 Kinecelleration 66 Offensive Hacking 24 Defensive Hacking 12 Item Schematics ----------------- Arm. Treads | -9/Recycling | Hacked Assault Drone Bay | -5/Zhirov | Free Exp. Heat Sink | -5/Zhirov | Free Exp. Optical Array | -5/Zhirov | Free Imp. Arc Thrower | -5/Zhirov | Free Robot Schematics ------------------ None Fabricated ------------ A-27 Freighter | x1 | -3/Protoforge | Preloaded Repaired ---------- Lgt. Treads | 49% | -10/Materials Med. Armor Plating | 14% | -9/Materials Lgt. Treads | 50% | -9/Materials Lgt. Treads | 58% | -9/Materials Transmission Jammer | 55% | -6/Factory | Broken Adv. Cooling System | 13% | -3/Research Studied --------- Hvy. Hammer | -6/Factory | Hacked Field Propulsion Drive | -4/Factory | Hacked Lrn. Missile Launcher | -4/Factory | Hacked Lgt. Fission Core | -4/Factory | Hacked Alien Tech Used ----------------- Integrated Reactor Core Stripper Achievements -------------- Inventory(Loot) King Drone UFD MVP We Are One Challenges ------------ None Game ------ Seed tripodarmortether Manual? 1 Play Time 03:56:27 Cumulative 255.0 hours Start 2026.05.02 @ 01:13:58 End 2026.05.02 @ 15:34:27 Sessions 4 Manual Loads 0 Difficulty Rogue Special Mode None Game No. 127 Rogue 123 Adventurer 4 Explorer 0 Win Type - Total 6 Types 3/0/1/1/0/0/0/1/0/0 Lore% 78 Gallery% 66 Achievement% 52 Wizard Run 0 Options --------- Layout 0 ASCII 0 Keyboard 1 Movement Vi Keybinds 0 Fullscreen 1 Font 24/Crisp Map View 76x50 Zoom Use 0% Tactical HUD 1 Map Filters NONE Filters NONE Steam 1 RUN: 582eb677-ccb8-4332-bbfd-19a329c7be18